fUSD/lending_fUSD_20250628
["ID","MTS","AMOUNT","RATE_DAILY","PERIOD"]
[368271717,1751082676226,-4733.3665709,0.00045996,2]
[368271718,1751082676235,-53280.6517657,0.00045996,2]
[368271719,1751082676244,-6942.2624287,0.00045996,2]
[368271720,1751082676254,-2153.8120034,0.00045996,2]
[368271721,1751082676263,-1862.92164999,0.00046,120]
[368271722,1751082676274,-1874.42468407,0.00046,120]
[368271723,1751082676283,-22578.02,0.00046,14]
[368271724,1751082676294,-835.41973025,0.00046,7]
[368271725,1751082676306,-500.0,0.00046018,30]
[368271726,1751082676317,-568.80042312,0.00046021,10]
[368271727,1751082676327,-560.0,0.00046027,60]
[368271728,1751082676338,-472.682867,0.00046027,60]
[368271729,1751082676351,-922.75399,0.00046027,60]
[368271730,1751082676360,-840.133317,0.00046027,60]
[368271731,1751082676370,-482.08594336,0.00046027,60]
[368271732,1751082676383,-490.0,0.00046027,60]
[368271733,1751082676395,-490.0,0.00046027,60]
[368271734,1751082676405,-490.0,0.00046027,60]
[368271735,1751082676415,-490.0,0.00046027,60]
[368271736,1751082676424,-490.0,0.00046027,60]
[368271737,1751082676434,-490.0,0.00046027,60]
[368271738,1751082676443,-490.0,0.00046027,60]
[368271739,1751082676452,-510.0,0.00046027,60]
[368271740,1751082676462,-555.28191019,0.00046027,60]
[368271741,1751082676471,-577.97325689,0.00046027,60]
[368271742,1751082676480,-490.0,0.00046027,60]
[368271743,1751082676489,-529.54303823,0.00046027,60]
[368271744,1751082676498,-490.0,0.00046027,60]
[368271745,1751082676508,-490.0,0.00046027,60]
[368271746,1751082676518,-490.0,0.00046027,60]
[368271747,1751082676528,-308.45019544,0.00046027,60]
[368271748,1751082676537,-490.0,0.00046027,60]
[368271749,1751082676546,-523.2134409,0.00046027,60]
[368271750,1751082676555,-490.0,0.00046027,60]
[368271751,1751082676566,-490.0,0.00046027,60]
[368271752,1751082676575,-490.0,0.00046027,60]
[368271753,1751082676585,-511.35026309,0.00046027,60]
[368271754,1751082676594,-490.0,0.00046027,60]
[368271755,1751082676603,-490.0,0.00046027,60]
[368271756,1751082676612,-538.02310746,0.00046027,60]
[368271757,1751082676621,-490.0,0.00046027,60]
[368271758,1751082676630,-490.0,0.00046027,60]
[368271759,1751082676640,-359.17162257,0.00046027,60]
[368271760,1751082676650,-490.0,0.00046027,60]
[368271761,1751082676660,-490.0,0.00046027,60]
[368271762,1751082676670,-490.0,0.00046027,60]
[368271763,1751082676680,-490.0,0.00046027,60]
[368271764,1751082676689,-168.65115858,0.00046027,60]
[368271765,1751082676699,-490.0,0.00046027,60]
[368271766,1751082676710,-490.0,0.00046027,60]
[368271767,1751082676720,-490.0,0.00046027,60]
[368271768,1751082676731,-490.0,0.00046027,60]
[368271769,1751082676740,-490.0,0.00046027,60]
[368271770,1751082676750,-490.0,0.00046027,60]
[368271771,1751082676761,-597.74643696,0.00046027,60]
[368271772,1751082676771,-490.0,0.00046027,60]
[368271773,1751082676783,-551.06431046,0.00046027,60]
[368271774,1751082676792,-490.0,0.00046027,60]
[368271775,1751082676803,-490.0,0.00046027,60]
[368271776,1751082676813,-490.0,0.00046027,60]
[368271777,1751082676824,-490.0,0.00046027,60]
[368271778,1751082676834,-490.0,0.00046027,60]
[368271779,1751082676844,-490.0,0.00046027,60]
[368271780,1751082676854,-490.0,0.00046027,60]
[368271781,1751082676865,-592.91,0.00046027,60]
[368271782,1751082676874,-490.0,0.00046027,60]
[368271783,1751082676884,-490.0,0.00046027,60]
[368271784,1751082676895,-490.0,0.00046027,60]
[368271785,1751082676906,-490.0,0.00046027,60]
[368271786,1751082676916,-530.14836895,0.00046027,60]
[368271787,1751082676926,-490.0,0.00046027,60]
[368271788,1751082676938,-490.0,0.00046027,60]
[368271789,1751082676948,-490.0,0.00046027,60]
[368271790,1751082676958,-490.0,0.00046027,60]
[368271791,1751082676967,-499.36,0.00046027,60]
[368271792,1751082676977,-490.0,0.00046027,60]
[368271793,1751082676987,-490.0,0.00046027,60]
[368271794,1751082676996,-490.0,0.00046027,60]
[368271795,1751082677007,-1075.6,0.00046027,60]
[368271796,1751082677016,-237.98992844,0.00046027,60]
[368271797,1751082677025,-490.0,0.00046027,60]
[368271798,1751082677035,-523.91231346,0.00046027,60]
[368271799,1751082677044,-490.0,0.00046027,60]
[368271800,1751082677054,-870.44,0.00046027,60]
[368271801,1751082677063,-490.0,0.00046027,60]
[368271802,1751082677073,-490.0,0.00046027,60]
[368271803,1751082677083,-490.0,0.00046027,60]
[368271804,1751082677092,-490.0,0.00046027,60]
[368271805,1751082677101,-501.60779572,0.00046027,60]
[368271806,1751082677111,-490.0,0.00046027,60]
[368271807,1751082677120,-490.0,0.00046027,60]
[368271808,1751082677130,-490.0,0.00046027,60]
[368271809,1751082677139,-490.0,0.00046027,60]
[368271810,1751082677148,-726.08,0.00046027,60]
[368271811,1751082677158,-934.18,0.00046027,60]
[368271812,1751082677168,-490.0,0.00046027,60]
[368271813,1751082677178,-690.12,0.00046027,60]
[368271814,1751082677187,-490.0,0.00046027,60]
[368271815,1751082677198,-490.0,0.00046027,60]
[368271816,1751082677207,-490.0,0.00046027,60]
[368271817,1751082677217,-490.0,0.00046027,60]
[368271818,1751082677227,-490.0,0.00046027,60]
[368271819,1751082677237,-709.03,0.00046027,60]
[368271820,1751082677247,-498.93950039,0.00046027,7]
[368271821,1751082677256,-490.0,0.00046027,60]
[368271822,1751082677265,-490.0,0.00046027,60]
[368271823,1751082677274,-490.0,0.00046027,60]
[368271824,1751082677285,-490.0,0.00046027,60]
[368271825,1751082677294,-564.61,0.00046027,60]
[368271826,1751082677304,-545.54,0.00046027,60]
[368271827,1751082677317,-407.05,0.00046027,60]
[368271828,1751082677327,-490.0,0.00046027,60]
[368271829,1751082677336,-886.57,0.00046027,60]
[368271830,1751082677346,-490.0,0.00046027,60]
[368271831,1751082677355,-490.0,0.00046027,60]
[368271832,1751082677368,-490.0,0.00046027,60]
[368271833,1751082677378,-490.0,0.00046027,60]
[368271834,1751082677389,-506.78,0.00046027,60]
[368271835,1751082677398,-490.0,0.00046027,60]
[368271836,1751082677409,-943.17,0.00046027,60]
[368271837,1751082677419,-490.0,0.00046027,60]
[368271838,1751082677429,-490.0,0.00046027,60]
[368271839,1751082677439,-490.0,0.00046027,60]
[368271840,1751082677449,-649.77,0.00046027,60]
[368271841,1751082677459,-490.0,0.00046027,60]
[368271842,1751082677468,-270.91966651,0.00046027,60]
[368271843,1751082677478,-794.82,0.00046027,60]
[368271844,1751082677487,-490.0,0.00046027,60]
[368271845,1751082677496,-490.0,0.00046027,60]
[368271846,1751082677505,-490.0,0.00046027,60]
[368271847,1751082677514,-490.0,0.00046027,60]
[368271848,1751082677523,-490.0,0.00046027,60]
[368271849,1751082677531,-490.0,0.00046027,60]
[368271850,1751082677540,-490.0,0.00046027,60]
[368271851,1751082677549,-490.0,0.00046027,60]
[368271852,1751082677558,-490.0,0.00046027,60]
[368271853,1751082677567,-490.0,0.00046027,60]
[368271854,1751082677577,-490.0,0.00046027,60]
[368271855,1751082677586,-878.01,0.00046027,60]
[368271856,1751082677595,-735.23,0.00046027,60]
[368271857,1751082677605,-569.1342529,0.00046027,60]
[368271858,1751082677614,-490.0,0.00046027,60]
[368271859,1751082677624,-490.0,0.00046027,60]
[368271860,1751082677633,-589.33,0.00046027,60]
[368271861,1751082677642,-490.0,0.00046027,60]
[368271862,1751082677651,-490.0,0.00046027,60]
[368271863,1751082677661,-490.0,0.00046027,60]
[368271864,1751082677670,-490.0,0.00046027,60]
[368271865,1751082677679,-490.0,0.00046027,60]
[368271866,1751082677688,-607.47,0.00046027,60]
[368271867,1751082677698,-500.0,0.00046027,120]
[368271868,1751082677707,-544.71,0.00046027,60]
[368271869,1751082677715,-510.9,0.00046027,60]
[368271870,1751082677724,-490.0,0.00046027,60]
[368271871,1751082677733,-490.0,0.00046027,60]
[368271872,1751082677743,-490.0,0.00046027,60]
[368271873,1751082677752,-490.0,0.00046027,60]
[368271874,1751082677761,-490.0,0.00046027,60]
[368271875,1751082677771,-490.0,0.00046027,60]
[368271876,1751082677780,-490.0,0.00046027,60]
[368271877,1751082677789,-490.0,0.00046027,60]
[368271878,1751082677798,-184.16186221,0.00046027,60]
[368271879,1751082677808,-490.0,0.00046027,60]
[368271880,1751082677818,-490.0,0.00046027,60]
[368271881,1751082677827,-490.0,0.00046027,60]
[368271882,1751082677837,-490.0,0.00046027,60]
[368271883,1751082677848,-747.38,0.00046027,60]
[368271884,1751082677857,-490.0,0.00046027,60]
[368271885,1751082677866,-724.21,0.00046027,60]
[368271886,1751082677876,-490.0,0.00046027,60]
[368271887,1751082677885,-490.0,0.00046027,60]
[368271888,1751082677895,-662.39,0.00046027,60]
[368271889,1751082677904,-490.0,0.00046027,60]
[368271890,1751082677914,-551.32,0.00046027,60]
[368271891,1751082677923,-490.0,0.00046027,60]
[368271892,1751082677933,-490.0,0.00046027,60]
[368271893,1751082677942,-490.0,0.00046027,60]
[368271894,1751082677951,-490.0,0.00046027,60]
[368271895,1751082677960,-490.0,0.00046027,60]
[368271896,1751082677971,-490.0,0.00046027,60]
[368271897,1751082677980,-530.87,0.00046027,60]
[368271898,1751082677990,-490.0,0.00046027,60]
[368271899,1751082677999,-559.38,0.00046027,60]
[368271900,1751082678009,-490.0,0.00046027,60]
[368271901,1751082678019,-298.60171355,0.00046027,60]
[368271902,1751082678028,-493.98,0.00046027,60]
[368271903,1751082678038,-490.0,0.00046027,60]
[368271904,1751082678048,-490.0,0.00046027,60]
[368271905,1751082678057,-1173.16,0.00046027,60]
[368271906,1751082678067,-490.0,0.00046027,60]
[368271907,1751082678077,-857.13,0.00046027,60]
[368271908,1751082678087,-556.68742243,0.00046027,60]
[368271909,1751082678096,-973.28,0.00046027,60]
[368271910,1751082678106,-490.0,0.00046027,60]
[368271911,1751082678116,-490.0,0.00046027,60]
[368271912,1751082678125,-490.0,0.00046027,60]
[368271913,1751082678135,-490.0,0.00046027,60]
[368271914,1751082678145,-490.0,0.00046027,60]
[368271915,1751082678155,-490.0,0.00046027,60]
[368271916,1751082678165,-592.91,0.00046027,60]
[368271917,1751082678175,-490.0,0.00046027,60]
[368271918,1751082678185,-490.0,0.00046027,60]
[368271919,1751082678195,-490.0,0.00046027,60]
[368271920,1751082678205,-490.0,0.00046027,60]
[368271921,1751082678215,-788.82,0.00046027,60]
[368271922,1751082678224,-490.0,0.00046027,60]
[368271923,1751082678234,-490.0,0.00046027,60]
[368271924,1751082678244,-490.0,0.00046027,60]
[368271925,1751082678253,-490.0,0.00046027,60]
[368271926,1751082678263,-575.59,0.00046027,60]
[368271927,1751082678272,-490.0,0.00046027,120]
[368271928,1751082678281,-490.0,0.00046027,60]
[368271929,1751082678291,-660.57,0.00046027,60]
[368271930,1751082678301,-490.0,0.00046027,60]
[368271931,1751082678311,-490.0,0.00046027,60]
[368271932,1751082678321,-514.96,0.00046027,60]
[368271933,1751082678330,-490.0,0.00046027,60]
[368271934,1751082678340,-490.0,0.00046027,60]
[368271935,1751082678350,-490.0,0.00046027,60]
[368271936,1751082678361,-490.0,0.00046027,60]
[368271937,1751082678373,-490.0,0.00046027,60]
[368271938,1751082678383,-490.0,0.00046027,60]
[368271939,1751082678392,-490.0,0.00046027,60]
[368271940,1751082678402,-490.0,0.00046027,60]
[368271941,1751082678414,-490.0,0.00046027,60]
[368271942,1751082678423,-490.0,0.00046027,60]
[368271943,1751082678433,-490.0,0.00046027,60]
[368271944,1751082678442,-490.0,0.00046027,60]
[368271945,1751082678453,-490.0,0.00046027,60]
[368271946,1751082678463,-536.48,0.00046027,60]
[368271947,1751082678472,-490.0,0.00046027,60]
[368271948,1751082678482,-490.0,0.00046027,60]
[368271949,1751082678492,-490.0,0.00046027,60]
[368271950,1751082678501,-490.0,0.00046027,60]
[368271951,1751082678511,-679.41,0.00046027,60]
[368271952,1751082678520,-490.0,0.00046027,60]
[368271953,1751082678531,-490.0,0.00046027,60]
[368271954,1751082678540,-241.40834328,0.00046027,60]
[368271955,1751082678549,-490.0,0.00046027,60]
[368271956,1751082678559,-517.5,0.00046027,60]
[368271957,1751082678568,-899.76,0.00046027,60]
[368271958,1751082678578,-490.0,0.00046027,60]
[368271959,1751082678587,-490.0,0.00046027,60]
[368271960,1751082678597,-504.27,0.00046027,60]
[368271961,1751082678607,-1167.54,0.00046027,60]
[368271962,1751082678617,-490.0,0.00046027,60]
[368271963,1751082678627,-490.0,0.00046027,60]
[368271964,1751082678636,-293.56640936,0.00046027,60]
[368271965,1751082678646,-490.0,0.00046027,60]
[368271966,1751082678655,-490.0,0.00046027,60]
[368271967,1751082678665,-490.0,0.00046027,60]
[368271968,1751082678675,-490.0,0.00046027,60]
[368271969,1751082678685,-490.0,0.00046027,60]
[368271970,1751082678695,-490.0,0.00046027,60]
[368271971,1751082678705,-490.0,0.00046027,60]
[368271972,1751082678714,-490.0,0.00046027,60]
[368271973,1751082678724,-490.0,0.00046027,60]
[368271974,1751082678734,-562.59782059,0.00046027,60]
[368271975,1751082678744,-490.0,0.00046027,60]
[368271976,1751082678754,-490.0,0.00046027,60]
[368271977,1751082678764,-792.14,0.00046027,60]
[368271978,1751082678774,-490.0,0.00046027,60]
[368271979,1751082678784,-490.0,0.00046027,60]
[368271980,1751082678793,-442.89419377,0.00046027,60]
[368271981,1751082678804,-490.0,0.00046027,60]
[368271982,1751082678815,-612.86,0.00046027,60]
[368271983,1751082678825,-490.0,0.00046027,60]
[368271984,1751082678835,-490.0,0.00046027,60]
[368271985,1751082678845,-531.29,0.00046027,60]
[368271986,1751082678854,-490.0,0.00046027,60]
[368271987,1751082678864,-490.0,0.00046027,60]
[368271988,1751082678875,-490.0,0.00046027,60]
[368271989,1751082678884,-490.0,0.00046027,60]
[368271990,1751082678894,-490.0,0.00046027,60]
[368271991,1751082678904,-216.99081279,0.00046027,60]
[368271992,1751082678914,-490.0,0.00046027,60]
[368271993,1751082678924,-490.0,0.00046027,60]
[368271994,1751082678933,-490.0,0.00046027,60]
[368271995,1751082678943,-571.20876554,0.00046027,60]
[368271996,1751082678953,-490.0,0.00046027,60]
[368271997,1751082678963,-490.0,0.00046027,60]
[368271998,1751082678972,-542.6,0.00046027,60]
[368271999,1751082678982,-490.0,0.00046027,60]
[368272000,1751082678993,-490.0,0.00046027,60]
[368272001,1751082679004,-490.0,0.00046027,60]
[368272002,1751082679013,-490.0,0.00046027,60]
[368272003,1751082679023,-490.0,0.00046027,60]
[368272004,1751082679033,-490.0,0.00046027,60]
[368272005,1751082679043,-490.0,0.00046027,60]
[368272006,1751082679053,-963.8,0.00046027,60]
[368272007,1751082679063,-490.0,0.00046027,60]
[368272008,1751082679074,-490.0,0.00046027,60]
[368272009,1751082679084,-490.0,0.00046027,60]
[368272010,1751082679094,-642.24,0.00046027,60]
[368272011,1751082679104,-490.0,0.00046027,60]
[368272012,1751082679114,-300.0,0.00046027,60]
[368272013,1751082679124,-490.0,0.00046027,60]
[368272014,1751082679134,-490.0,0.00046027,60]
[368272015,1751082679144,-490.0,0.00046027,60]
[368272016,1751082679155,-490.0,0.00046027,60]
[368272017,1751082679165,-595.69,0.00046027,60]
[368272018,1751082679175,-490.0,0.00046027,60]
[368272019,1751082679184,-490.0,0.00046027,60]
[368272020,1751082679194,-1086.71,0.00046027,60]
[368272021,1751082679204,-606.52,0.00046027,60]
[368272022,1751082679215,-490.0,0.00046027,60]
[368272023,1751082679225,-1061.08,0.00046027,60]
[368272024,1751082679235,-695.58,0.00046027,60]
[368272025,1751082679245,-490.0,0.00046027,60]
[368272026,1751082679255,-490.0,0.00046027,60]
[368272027,1751082679264,-490.0,0.00046027,60]
[368272028,1751082679274,-490.0,0.00046027,60]
[368272029,1751082679284,-1239.63,0.00046027,60]
[368272030,1751082679293,-490.0,0.00046027,60]
[368272031,1751082679303,-490.0,0.00046027,60]
[368272032,1751082679312,-720.8,0.00046027,60]
[368272033,1751082679323,-490.0,0.00046027,60]
[368272034,1751082679332,-490.0,0.00046027,60]
[368272035,1751082679342,-490.0,0.00046027,60]
[368272036,1751082679352,-832.43,0.00046027,60]
[368272037,1751082679364,-663.26,0.00046027,60]
[368272038,1751082679374,-718.76,0.00046027,60]
[368272039,1751082679384,-531.73,0.00046027,60]
[368272040,1751082679394,-490.0,0.00046027,60]
[368272041,1751082679403,-495.8,0.00046027,60]
[368272042,1751082679413,-1624.9,0.00046027,60]
[368272043,1751082679423,-547.95,0.00046027,60]
[368272044,1751082679433,-490.0,0.00046027,60]
[368272045,1751082679442,-1486.68,0.00046027,60]
[368272046,1751082679452,-532.38,0.00046027,60]
[368272047,1751082679462,-490.0,0.00046027,60]
[368272048,1751082679471,-490.0,0.00046027,60]
[368272049,1751082679481,-490.0,0.00046027,60]
[368272050,1751082679491,-1416.53,0.00046027,60]
[368272051,1751082679501,-490.0,0.00046027,60]
[368272052,1751082679510,-490.0,0.00046027,60]
[368272053,1751082679520,-490.0,0.00046027,60]
[368272054,1751082679530,-2816.51,0.00046027,60]
[368272055,1751082679541,-741.63,0.00046027,60]
[368272056,1751082679551,-570.57,0.00046027,60]
[368272057,1751082679561,-490.0,0.00046027,60]
[368272058,1751082679571,-1178.77,0.00046027,60]
[368272059,1751082679581,-490.0,0.00046027,60]
[368272060,1751082679590,-752.82,0.00046027,60]
[368272061,1751082679600,-705.56,0.00046027,60]
[368272062,1751082679609,-490.0,0.00046027,60]
[368272063,1751082679619,-490.0,0.00046027,60]
[368272064,1751082679629,-601.38,0.00046027,60]
[368272065,1751082679639,-490.0,0.00046027,60]
[368272066,1751082679648,-1000.0,0.00046027,60]
[368272067,1751082679659,-490.0,0.00046027,60]
[368272068,1751082679668,-490.0,0.00046027,60]
[368272069,1751082679678,-766.0,0.00046027,60]
[368272070,1751082679688,-490.0,0.00046027,60]
[368272071,1751082679697,-1959.61,0.00046027,60]
[368272072,1751082679707,-1475.04,0.00046027,60]
[368272073,1751082679717,-820.32,0.00046027,60]
[368272074,1751082679726,-266.5857235,0.00046027,60]
[368272075,1751082679735,-707.08,0.00046027,60]
[368272076,1751082679745,-490.0,0.00046027,60]
[368272077,1751082679755,-490.0,0.00046027,60]
[368272078,1751082679764,-490.0,0.00046027,60]
[368272079,1751082679773,-619.72,0.00046027,60]
[368272080,1751082679783,-1010.54,0.00046027,60]
[368272081,1751082679793,-490.0,0.00046027,60]
[368272082,1751082679803,-1073.99,0.00046027,60]
[368272083,1751082679812,-490.0,0.00046027,60]
[368272084,1751082679822,-1067.18,0.00046027,60]
[368272085,1751082679831,-1010.91,0.00046027,60]
[368272086,1751082679841,-1570.28,0.00046027,60]
[368272087,1751082679851,-548.91,0.00046027,60]
[368272088,1751082679861,-490.0,0.00046027,60]
[368272089,1751082679870,-750.13,0.00046027,60]
[368272090,1751082679880,-490.0,0.00046027,60]
[368272091,1751082679890,-490.0,0.00046027,60]
[368272092,1751082679900,-490.0,0.00046027,60]
[368272093,1751082679910,-821.23,0.00046027,60]
[368272094,1751082679919,-1542.99,0.00046027,60]
[368272095,1751082679929,-1177.3,0.00046027,60]
[368272096,1751082679939,-1179.63,0.00046027,60]
[368272097,1751082679948,-529.21,0.00046027,60]
[368272098,1751082679958,-610.66,0.00046027,60]
[368272099,1751082679968,-741.12,0.00046027,60]
[368272100,1751082679978,-1631.32,0.00046027,60]
[368272101,1751082679988,-1097.42,0.00046027,60]
[368272102,1751082679998,-548.15,0.00046027,60]
[368272103,1751082680170,-490.0,0.00046027,60]
[368272104,1751082680180,-490.0,0.00046027,60]
[368272105,1751082680190,-2810.62,0.00046027,60]
[368272106,1751082680200,-562.68,0.00046027,60]
[368272107,1751082680210,-813.63,0.00046027,60]
[368272108,1751082680220,-4339.41,0.00046027,60]
[368272109,1751082680229,-490.0,0.00046027,60]
[368272110,1751082680239,-490.0,0.00046027,60]
[368272111,1751082680248,-490.0,0.00046027,60]
[368272112,1751082680259,-810.18,0.00046027,60]
[368272113,1751082680268,-1527.73,0.00046027,60]
[368272114,1751082680278,-1543.42,0.00046027,60]
[368272115,1751082680287,-3523.62,0.00046027,60]
[368272116,1751082680297,-490.0,0.00046027,60]
[368272117,1751082680307,-962.8,0.00046027,60]
[368272118,1751082680316,-490.0,0.00046027,60]
[368272119,1751082680326,-1516.86,0.00046027,60]
[368272120,1751082680335,-490.0,0.00046027,60]
[368272121,1751082680345,-490.0,0.00046027,60]
[368272122,1751082680354,-490.0,0.00046027,60]
[368272123,1751082680366,-497.16,0.00046027,60]
[368272124,1751082680376,-616.8,0.00046027,60]
[368272125,1751082680386,-490.0,0.00046027,60]
[368272126,1751082680396,-539.6804019,0.00046027,60]
[368272127,1751082680407,-490.0,0.00046027,60]
[368272128,1751082680418,-1169.16,0.00046027,60]
[368272129,1751082680427,-1767.07,0.00046027,60]
[368272130,1751082680438,-810.46,0.00046027,60]
[368272131,1751082680451,-862.6,0.00046027,60]
[368272132,1751082680464,-497.3,0.00046027,60]
[368272133,1751082680474,-490.0,0.00046027,60]
[368272134,1751082680484,-1075.14,0.00046027,60]
[368272135,1751082680493,-1034.52,0.00046027,60]
[368272136,1751082680503,-558.28,0.00046027,60]
[368272137,1751082680512,-641.55,0.00046027,60]
[368272138,1751082680522,-490.0,0.00046027,60]
[368272139,1751082680531,-999.45,0.00046027,60]
[368272140,1751082680541,-490.0,0.00046027,60]
[368272141,1751082680551,-803.37,0.00046027,60]
[368272142,1751082680560,-490.0,0.00046027,60]
[368272143,1751082680569,-682.71,0.00046027,60]
[368272144,1751082680579,-786.52,0.00046027,60]
[368272145,1751082680589,-490.0,0.00046027,60]
[368272146,1751082680600,-500.0,0.00046027,120]
[368272147,1751082680610,-490.0,0.00046027,60]
[368272148,1751082680620,-1920.6,0.00046027,60]
[368272149,1751082680631,-1072.62,0.00046027,60]
[368272150,1751082680640,-1312.78,0.00046027,60]
[368272151,1751082680651,-2815.27,0.00046027,60]
[368272152,1751082680662,-723.8,0.00046027,60]
[368272153,1751082680671,-490.0,0.00046027,60]
[368272154,1751082680681,-490.0,0.00046027,60]
[368272155,1751082680691,-1033.45,0.00046027,60]
[368272156,1751082680700,-490.0,0.00046027,60]
[368272157,1751082680709,-2346.56,0.00046027,60]
[368272158,1751082680719,-687.64,0.00046027,60]
[368272159,1751082680728,-678.93,0.00046027,60]
[368272160,1751082680737,-490.0,0.00046027,60]
[368272161,1751082680747,-927.25,0.00046027,60]
[368272162,1751082680756,-747.75,0.00046027,60]
[368272163,1751082680766,-490.0,0.00046027,60]
[368272164,1751082680776,-1025.89,0.00046027,60]
[368272165,1751082680786,-490.0,0.00046027,60]
[368272166,1751082680796,-982.12,0.00046027,60]
[368272167,1751082680805,-1497.8,0.00046027,60]
[368272168,1751082680815,-823.14,0.00046027,60]
[368272169,1751082680825,-490.0,0.00046027,60]
[368272170,1751082680834,-490.0,0.00046027,60]
[368272171,1751082680843,-490.0,0.00046027,60]
[368272172,1751082680852,-10416.89,0.00046027,60]
[368272173,1751082680862,-490.0,0.00046027,60]
[368272174,1751082680873,-940.78,0.00046027,60]
[368272175,1751082680883,-490.0,0.00046027,60]
[368272176,1751082680892,-490.0,0.00046027,60]
[368272177,1751082680902,-490.0,0.00046027,60]
[368272178,1751082680912,-688.66,0.00046027,60]
[368272179,1751082680922,-490.0,0.00046027,60]
[368272180,1751082680932,-490.0,0.00046027,60]
[368272181,1751082680941,-490.0,0.00046027,60]
[368272182,1751082680951,-1596.4,0.00046027,60]
[368272183,1751082680960,-490.0,0.00046027,60]
[368272184,1751082680970,-737.29,0.00046027,60]
[368272185,1751082680979,-490.0,0.00046027,60]
[368272186,1751082680989,-721.19,0.00046027,60]
[368272187,1751082680999,-512.83,0.00046027,60]
[368272188,1751082681009,-656.57,0.00046027,60]
[368272189,1751082681019,-1121.37,0.00046027,60]
[368272190,1751082681028,-490.0,0.00046027,60]
[368272191,1751082681038,-562.33858114,0.00046027,60]
[368272192,1751082681048,-1360.23,0.00046027,60]
[368272193,1751082681058,-490.0,0.00046027,60]
[368272194,1751082681068,-490.0,0.00046027,60]
[368272195,1751082681078,-549.58463701,0.00046027,60]
[368272196,1751082681088,-2863.29,0.00046027,60]
[368272197,1751082681098,-329.05330243,0.00046027,60]
[368272198,1751082681108,-1395.11,0.00046027,60]
[368272199,1751082681118,-792.2,0.00046027,60]
[368272200,1751082681128,-490.0,0.00046027,60]
[368272201,1751082681138,-490.0,0.00046027,60]
[368272202,1751082681147,-804.17,0.00046027,60]
[368272203,1751082681157,-490.0,0.00046027,60]
[368272204,1751082681166,-524.69,0.00046027,60]
[368272205,1751082681176,-490.0,0.00046027,60]
[368272206,1751082681185,-778.19,0.00046027,60]
[368272207,1751082681195,-983.74,0.00046027,60]
[368272208,1751082681204,-490.0,0.00046027,60]
[368272209,1751082681214,-1392.7,0.00046027,60]
[368272210,1751082681223,-4629.37,0.00046027,60]
[368272211,1751082681232,-490.0,0.00046027,60]
[368272212,1751082681243,-490.0,0.00046027,60]
[368272213,1751082681253,-1084.9,0.00046027,60]
[368272214,1751082681262,-490.0,0.00046027,60]
[368272215,1751082681272,-1574.76,0.00046027,60]
[368272216,1751082681282,-1175.66,0.00046027,60]